[Event "Austrian Championship 2022"]
[Site "Vienna"]
[Date "2022.08.18"]
[Round "8.18"]
[White "Hoegl, Emanuel"]
[Black "Albadri Abd Al Sattar"]
[Result "1/2-1/2"]
[ECO "A59"]
[WhiteElo "2094"]
[BlackElo "2161"]
[Annotator "NA RC"]
[PlyCount "91"]
[EventDate "2022.08.12"]
[EventType "swiss"]
[EventCountry "AUT"]
[SourceTitle "playchess.com"]
[Source "ChessBase"]
[SourceQuality "1"]
[TimeControl "40/5400+30:1800+30"]

1. d4 {[%emt 0:00:01]} Nf6 {[%emt 0:02:05]} 2. c4 {[%emt 0:00:04]} c5 {[%emt 0:02:49]} 3. d5 {[%emt 0:00:05]} b5 {[%emt 0:00:06]} 4. cxb5 {[%emt 0:00:03]} a6 {[%emt 0:00:06]} 5. bxa6 {[%emt 0:00:03]} Bxa6 {[%emt 0:00:07]} 6. Nc3 {[%emt 0:00:04]} d6 {[%emt 0:00:11]} 7. e4 {[%emt 0:00:03]} Bxf1 {[%emt 0:00:13]} 8. Kxf1 {[%emt 0:00:04]} g6 {[%emt 0:00:22]} 9. Nf3 {[%emt 0:00:02]} Bg7 {[%emt 0:00:06]} 10. g3 {[%emt 0:00:04]} O-O {[%emt 0:00:11]} 11. Kg2 {[%emt 0:00:02]} Nbd7 {[%emt 0:00:09]} 12. a4 {[%emt 0:00:04]} Qa5 {[%emt 0:00:27]} 13. Qe2 {[%emt 0:18:39]} Rfb8 {[%emt 0:00:31]} 14. Ra3 {[%emt 0:09:31]} Qb4 {[%emt 0:04:45]} 15. Qc2 {[%emt 0:07:40]} Ng4 {[%emt 0:04:10]} 16. Nb5 {[%emt 0:01:17]} Nge5 {[%emt 0:01:24]} 17. Nxe5 {[%emt 0:16:47]} Nxe5 {[%emt 0:00:03]} 18. Bd2 {[%emt 0:01:38]} Qc4 {[%emt 0:00:57]} 19. Rc1 {[%emt 0:00:45]} Qxc2 {[%emt 0:04:35]} 20. Rxc2 {[%emt 0:00:03]} c4 {[%emt 0:00:19]} 21. Kf1 {[%emt 0:15:38]} Nd3 {[%emt 0:13:00]} 22. Rxc4 {[%emt 0:00:07]} Nxb2 {[%emt 0:00:18]} 23. Rb4 {[%emt 0:00:07]} Rc8 {[%emt 0:06:56]} 24. Bc3 {[%emt 0:07:14]} Nd3 {[%emt 0:17:07]} 25. Rb1 {[%emt 0:00:10]} Nc5 {[%emt 0:01:31]} 26. Bxg7 {[%emt 0:00:33]} Kxg7 {[%emt 0:00:21]} 27. Nc3 {[%emt 0:00:07]} Ra6 {[%emt 0:10:15]} 28. a5 {[%emt 0:01:34]} Rca8 {[%emt 0:01:28]} 29. Rb5 {[%emt 0:00:04]} R8a7 {[%emt 0:00:39]} 30. Na2 {[%emt 0:04:32]} Nb7 {[%emt 0:03:31]} 31. Nb4 {[%emt 0:02:54]} Rxa5 {[%emt 0:00:41]} 32. Rbxa5 {[%emt 0:04:17]} Rxa5 {[%emt 0:00:15]} 33. Rxa5 {[%emt 0:00:28]} Nxa5 {[%emt 0:00:02]} 34. Nc6 {[%emt 0:00:43]} Nc4 {[%emt 0:00:26]} 35. Ke2 {[%emt 0:06:30]} Kf8 {[%emt 0:00:46]} 36. Kd3 {[%emt 0:00:44]} Nb6 {[%emt 0:00:38]} 37. Nd4 {[%emt 0:02:32]} Nd7 {[%emt 0:00:31]} 38. f4 {[%emt 0:00:55]} Nf6 {[%emt 0:00:46]} 39. Nf3 {[%emt 0:00:50]} h6 {[%emt 0:04:05]} 40. Kd4 {[%emt 0:01:45]} Ke8 {[%emt 0:03:54]} 41. e5 {[%emt 0:10:04]} Nd7 {[%emt 0:03:58]} 42. g4 {[%emt 0:02:55]} Nc5 {[%emt 0:02:52]} 43. h4 {[%emt 0:00:34]} Nd7 {[%emt 0:04:21]} 44. h5 {[%emt 0:02:02]} Kf8 {[%emt 0:07:55]} 45. Nh4 {[%emt 0:11:20]} Kg7 {[%emt 0:00:45]} 46. Nf3 {[%emt 0:06:02]} 1/2-1/2

[Event "Austrian Championship 2022"]
[Site "Vienna"]
[Date "2022.08.18"]
[Round "8.19"]
[White "Marakovits, Nico"]
[Black "Miazhynski, Michael"]
[Result "1/2-1/2"]
[ECO "A61"]
[WhiteElo "2259"]
[BlackElo "1994"]
[Annotator "NA RC"]
[PlyCount "62"]
[EventDate "2022.08.12"]
[EventType "swiss"]
[EventCountry "AUT"]
[SourceTitle "playchess.com"]
[Source "ChessBase"]
[SourceQuality "1"]
[TimeControl "40/5400+30:1800+30"]

1. d4 {[%emt 0:00:02]} Nf6 {[%emt 0:00:32]} 2. c4 {[%emt 0:00:09]} c5 {[%emt 0:00:15]} 3. d5 {[%emt 0:00:04]} e6 {[%emt 0:00:27]} 4. Nc3 {[%emt 0:00:23]} exd5 {[%emt 0:00:12]} 5. cxd5 {[%emt 0:00:12]} d6 {[%emt 0:00:21]} 6. Nf3 {[%emt 0:00:25]} g6 {[%emt 0:00:08]} 7. Bf4 {[%emt 0:00:13]} Bg7 {[%emt 0:02:43]} 8. Qa4+ {[%emt 0:07:29]} Bd7 {[%emt 0:02:15]} 9. Qb3 {[%emt 0:00:20]} b5 {[%emt 0:01:48]} 10. Nxb5 {[%emt 0:30:08]} Bxb5 {[%emt 0:01:33]} 11. Qxb5+ {[%emt 0:00:20]} Nbd7 {[%emt 0:00:10]} 12. Bxd6 {[%emt 0:22:01]} Ne4 {[%emt 0:02:11]} 13. Be5 {[%emt 0:00:42]} O-O {[%emt 0:00:20]} 14. Bxg7 {[%emt 0:01:03]} Kxg7 {[%emt 0:00:03]} 15. Qa4 {[%emt 0:09:32]} Qe7 {[%emt 0:31:38]} 16. e3 {[%emt 0:03:59]} Nb6 {[%emt 0:13:30]} 17. Qb3 {[%emt 0:04:03]} Rab8 {[%emt 0:03:43]} 18. Be2 {[%emt 0:04:13]} c4 {[%emt 0:06:35]} 19. Bxc4 {[%emt 0:03:52]} Qc5 {[%emt 0:02:53]} 20. Be2 {[%emt 0:01:07]} Qa5+ {[%emt 0:01:42]} 21. Kf1 {[%emt 0:00:22]} Nxd5 {[%emt 0:01:50]} 22. Qd3 {[%emt 0:00:06]} Ndf6 {[%emt 0:01:28]} 23. b3 {[%emt 0:01:28]} Qf5 {[%emt 0:07:15]} 24. h3 {[%emt 0:03:26]} h5 {[%emt 0:01:33]} 25. Kg1 {[%emt 0:01:39]} Rfd8 {[%emt 0:00:29]} 26. Qa6 {[%emt 0:01:03]} Rd7 {[%emt 0:06:21]} 27. Bd3 {[%emt 0:02:06]} Rbd8 {[%emt 0:02:33]} 28. Bxe4 {[%emt 0:00:06]} Nxe4 {[%emt 0:00:07]} 29. Rf1 {[%emt 0:00:45]} Nd2 {[%emt 0:04:52]} 30. Nd4 {[%emt 0:01:02]} Rxd4 {[%emt 0:01:51]} 31. exd4 {[%emt 0:00:08]} Nf3+ {[%emt 0:00:53]} 1/2-1/2

[Event "Austrian Championship 2022"]
[Site "Vienna"]
[Date "2022.08.18"]
[Round "8.20"]
[White "Balint, Peter"]
[Black "Schnepp, Gunnar"]
[Result "1-0"]
[ECO "B90"]
[WhiteElo "2051"]
[BlackElo "2265"]
[Annotator "NA RC"]
[PlyCount "43"]
[EventDate "2022.08.12"]
[EventType "swiss"]
[EventCountry "AUT"]
[SourceTitle "playchess.com"]
[Source "ChessBase"]
[SourceQuality "1"]
[TimeControl "40/5400+30:1800+30"]

1. e4 {[%emt 0:00:01]} c5 {[%emt 0:01:20]} 2. Nf3 {[%emt 0:00:04]} d6 {[%emt 0:00:11]} 3. d4 {[%emt 0:00:02]} cxd4 {[%emt 0:00:15]} 4. Nxd4 {[%emt 0:00:05]} Nf6 {[%emt 0:00:03]} 5. Nc3 {[%emt 0:00:09]} a6 {[%emt 0:00:07]} 6. Be3 {[%emt 0:00:23]} e5 {[%emt 0:00:02]} 7. Nb3 {[%emt 0:00:13]} Be6 {[%emt 0:00:02]} 8. f3 {[%emt 0:00:15]} h5 {[%emt 0:00:33]} 9. Qd2 {[%emt 0:01:08]} Nbd7 {[%emt 0:00:57]} 10. Nd5 {[%emt 0:00:52]} Nxd5 {[%emt 0:01:32]} 11. exd5 {[%emt 0:00:05]} Bf5 {[%emt 0:00:07]} 12. O-O-O {[%emt 0:03:03]} Be7 {[%emt 0:01:20]} 13. Kb1 {[%emt 0:00:37]} Rc8 {[%emt 0:21:33]} 14. Bd3 {[%emt 0:03:03]} Bxd3 {[%emt 0:00:16]} 15. Qxd3 {[%emt 0:00:05]} Bg5 {[%emt 0:00:41]} 16. Bf2 {[%emt 0:01:14]} h4 {[%emt 0:03:26]} 17. g3 {[%emt 0:06:44]} b5 {[%emt 0:25:00]} 18. f4 {[%emt 0:22:39]} exf4 {[%emt 0:03:29]} 19. Rhe1+ {[%emt 0:02:10]} Ne5 {[%emt 0:04:03]} 20. Qf5 {[%emt 0:01:21]} O-O {[%emt 0:24:11]} 21. gxf4 {[%emt 0:01:38]} g6 {[%emt 0:00:02]} 22. Qxg5 {[%emt 0:00:10]} 1-0

[Event "Austrian Championship 2022"]
[Site "Vienna"]
[Date "2022.08.18"]
[Round "8.21"]
[White "Nolz, Tom"]
[Black "Stadlinger, Matthias"]
[Result "1-0"]
[ECO "B00"]
[WhiteElo "2230"]
[BlackElo "1975"]
[Annotator "NA RC"]
[PlyCount "85"]
[EventDate "2022.08.12"]
[EventType "swiss"]
[EventCountry "AUT"]
[SourceTitle "playchess.com"]
[Source "ChessBase"]
[SourceQuality "1"]
[TimeControl "40/5400+30:1800+30"]

1. d4 {[%emt 0:10:09]} e6 {[%emt 0:00:12]} 2. Nf3 {[%emt 0:00:08]} b6 {[%emt 0:00:07]} 3. e4 {[%emt 0:00:28]} Bb7 {[%emt 0:00:15]} 4. Bd3 {[%emt 0:00:06]} c5 {[%emt 0:02:22]} 5. c3 {[%emt 0:01:31]} d5 {[%emt 0:05:16]} 6. e5 {[%emt 0:00:20]} Nc6 {[%emt 0:02:02]} 7. O-O {[%emt 0:00:13]} Qc7 {[%emt 0:06:42]} 8. Na3 {[%emt 0:06:43]} cxd4 {[%emt 0:17:31]} 9. Nb5 {[%emt 0:00:32]} Qd7 {[%emt 0:00:07]} 10. cxd4 {[%emt 0:00:28]} Nb4 {[%emt 0:05:01]} 11. Be2 {[%emt 0:01:20]} a6 {[%emt 0:01:37]} 12. Nc3 {[%emt 0:01:19]} Ne7 {[%emt 0:00:16]} 13. Na4 {[%emt 0:01:06]} Nc8 {[%emt 0:05:58]} 14. a3 {[%emt 0:07:53]} Nc6 {[%emt 0:00:06]} 15. b4 {[%emt 0:00:51]} Qc7 {[%emt 0:06:24]} 16. Bd2 {[%emt 0:03:18]} b5 {[%emt 0:03:37]} 17. Nc5 {[%emt 0:00:17]} Nb6 {[%emt 0:00:10]} 18. a4 {[%emt 0:06:36]} Nc4 {[%emt 0:13:20]} 19. axb5 {[%emt 0:08:45]} axb5 {[%emt 0:00:16]} 20. Rxa8+ {[%emt 0:00:14]} Bxa8 {[%emt 0:00:24]} 21. Bc3 {[%emt 0:13:51]} Be7 {[%emt 0:02:37]} 22. Bd3 {[%emt 0:09:43]} O-O {[%emt 0:06:34]} 23. Qc2 {[%emt 0:01:12]} h6 {[%emt 0:04:31]} 24. Qe2 {[%emt 0:02:31]} Bb7 {[%emt 0:02:03]} 25. h4 {[%emt 0:01:16]} Ra8 {[%emt 0:02:21]} 26. h5 {[%emt 0:02:25]} Ra3 {[%emt 0:01:58]} 27. Rc1 {[%emt 0:00:24]} Bc8 {[%emt 0:03:06]} 28. Bb1 {[%emt 0:03:00]} Bxc5 {[%emt 0:04:40]} 29. bxc5 {[%emt 0:00:11]} Ne7 {[%emt 0:00:30]} 30. Qc2 {[%emt 0:01:49]} g6 {[%emt 0:00:58]} 31. hxg6 {[%emt 0:03:43]} fxg6 {[%emt 0:00:09]} 32. Nh4 {[%emt 0:02:52]} Nf5 {[%emt 0:00:11]} 33. Nxg6 {[%emt 0:01:04]} Qg7 {[%emt 0:00:06]} 34. Nf4 {[%emt 0:00:31]} Qg4 {[%emt 0:00:20]} 35. g3 {[%emt 0:01:02]} h5 {[%emt 0:04:39]} 36. Qe2 {[%emt 0:02:07]} Rxc3 {[%emt 0:01:29]} 37. Rxc3 {[%emt 0:01:20]} Nxd4 {[%emt 0:00:02]} 38. Qd3 {[%emt 0:02:28]} Nxe5 {[%emt 0:00:20]} 39. Qh7+ {[%emt 0:02:42]} Kf8 {[%emt 0:00:05]} 40. Qh8+ {[%emt 0:00:08]} Ke7 {[%emt 0:00:30]} 41. Qxe5 {[%emt 0:30:12]} Nf3+ {[%emt 0:30:05]} 42. Rxf3 {[%emt 0:00:07]} Qxf3 {[%emt 0:00:02]} 43. Qd6+ {[%emt 0:01:12]} 1-0

[Event "Austrian Championship 2022"]
[Site "Vienna"]
[Date "2022.08.18"]
[Round "8.22"]
[White "Dotzer, Lukas"]
[Black "Steiner, Adam"]
[Result "1-0"]
[ECO "B15"]
[WhiteElo "2269"]
[BlackElo "2226"]
[Annotator "NA RC"]
[PlyCount "91"]
[EventDate "2022.08.12"]
[EventType "swiss"]
[EventCountry "AUT"]
[SourceTitle "playchess.com"]
[Source "ChessBase"]
[SourceQuality "1"]
[TimeControl "40/5400+30:1800+30"]

1. e4 {[%emt 0:00:01]} c6 {[%emt 0:00:05]} 2. d4 {[%emt 0:00:07]} d5 {[%emt 0:00:02]} 3. Nc3 {[%emt 0:00:08]} dxe4 {[%emt 0:00:07]} 4. Nxe4 {[%emt 0:00:08]} Nf6 {[%emt 0:00:05]} 5. Nxf6+ {[%emt 0:00:09]} exf6 {[%emt 0:00:03]} 6. c3 {[%emt 0:00:13]} Bd6 {[%emt 0:00:31]} 7. Bd3 {[%emt 0:00:05]} O-O {[%emt 0:00:32]} 8. Qc2 {[%emt 0:00:05]} Re8+ {[%emt 0:00:32]} 9. Ne2 {[%emt 0:00:09]} h5 {[%emt 0:00:24]} 10. O-O {[%emt 0:00:08]} h4 {[%emt 0:00:36]} 11. Bf4 {[%emt 0:00:12]} Na6 {[%emt 0:01:14]} 12. Rfe1 {[%emt 0:03:58]} Nc7 {[%emt 0:03:55]} 13. Qd2 {[%emt 0:03:54]} Bg4 {[%emt 0:15:59]} 14. f3 {[%emt 0:09:13]} Be6 {[%emt 0:00:30]} 15. Bxd6 {[%emt 0:00:34]} Qxd6 {[%emt 0:00:03]} 16. Qf4 {[%emt 0:01:23]} Qxf4 {[%emt 0:03:11]} 17. Nxf4 {[%emt 0:00:07]} g6 {[%emt 0:13:14]} 18. Re4 {[%emt 0:13:09]} f5 {[%emt 0:25:18]} 19. Re5 {[%emt 0:08:41]} Kg7 {[%emt 0:03:07]} 20. Kf2 {[%emt 0:09:36]} f6 {[%emt 0:01:39]} 21. Re2 {[%emt 0:02:29]} Bf7 {[%emt 0:00:36]} 22. Rae1 {[%emt 0:03:48]} Rxe2+ {[%emt 0:05:20]} 23. Nxe2 {[%emt 0:05:09]} Re8 {[%emt 0:05:23]} 24. g3 {[%emt 0:05:48]} a6 {[%emt 0:02:38]} 25. gxh4 {[%emt 0:07:40]} Bxa2 {[%emt 0:10:55]} 26. Rg1 {[%emt 0:04:06]} Kh6 {[%emt 0:03:46]} 27. h5 {[%emt 0:02:13]} g5 {[%emt 0:02:07]} 28. c4 {[%emt 0:03:13]} b5 {[%emt 0:00:27]} 29. Ng3 {[%emt 0:00:44]} Bxc4 {[%emt 0:01:21]} 30. Nxf5+ {[%emt 0:00:38]} Kh7 {[%emt 0:00:01]} 31. Be4 {[%emt 0:00:34]} Kh8 {[%emt 0:00:52]} 32. h4 {[%emt 0:02:37]} Rg8 {[%emt 0:01:09]} 33. Ne7 {[%emt 0:01:19]} Rd8 {[%emt 0:00:40]} 34. hxg5 {[%emt 0:06:41]} fxg5 {[%emt 0:00:00]} 35. Nxc6 {[%emt 0:01:54]} Rd6 {[%emt 0:00:55]} 36. Rxg5 {[%emt 0:00:36]} Nd5 {[%emt 0:00:20]} 37. Ne5 {[%emt 0:03:34]} Ne7 {[%emt 0:00:42]} 38. Nxc4 {[%emt 0:02:26]} bxc4 {[%emt 0:00:08]} 39. Ke3 {[%emt 0:00:27]} Rb6 {[%emt 0:00:49]} 40. Re5 {[%emt 0:01:44]} Ng8 {[%emt 0:00:13]} 41. Bd5 {[%emt 0:01:30]} Nf6 {[%emt 0:03:21]} 42. Bxc4 {[%emt 0:02:25]} Rxb2 {[%emt 0:01:03]} 43. Re6 {[%emt 0:02:51]} Nh7 {[%emt 0:03:34]} 44. Bd3 {[%emt 0:02:35]} Nf8 {[%emt 0:01:15]} 45. Rxa6 {[%emt 0:01:05]} Rh2 {[%emt 0:00:50]} 46. h6 {[%emt 0:00:29]} 1-0

[Event "Austrian Championship 2022"]
[Site "Vienna"]
[Date "2022.08.18"]
[Round "8.23"]
[White "Spiesberger, Gerhard"]
[Black "Scheffknecht, Philipp"]
[Result "1/2-1/2"]
[ECO "A35"]
[WhiteElo "1972"]
[BlackElo "2093"]
[Annotator "NA RC"]
[PlyCount "130"]
[EventDate "2022.08.12"]
[EventType "swiss"]
[EventCountry "AUT"]
[SourceTitle "playchess.com"]
[Source "ChessBase"]
[SourceQuality "1"]
[TimeControl "40/5400+30:1800+30"]

1. c4 {[%emt 0:00:20]} c5 {[%emt 0:02:14]} 2. Nc3 {[%emt 0:00:28]} Nc6 {[%emt 0:00:35]} 3. Nf3 {[%emt 0:00:28]} e5 {[%emt 0:01:52]} 4. g3 {[%emt 0:00:38]} f5 {[%emt 0:02:17]} 5. d3 {[%emt 0:00:31]} Be7 {[%emt 1:26:02]} 6. Bg2 {[%emt 0:03:02]} d6 {[%emt 0:00:00]} 7. a3 {[%emt 0:01:28]} Nf6 {[%emt 0:00:00]} 8. Rb1 {[%emt 0:00:36]} a5 {[%emt 0:00:00]} 9. b3 {[%emt 0:01:54]} O-O {[%emt 0:00:00]} 10. Nd5 {[%emt 0:05:51]} Kh8 {[%emt 0:00:00]} 11. Bd2 {[%emt 0:01:57]} Be6 {[%emt 0:00:00]} 12. Nxe7 {[%emt 0:06:07]} Qxe7 {[%emt 0:00:00]} 13. O-O {[%emt 0:01:54]} d5 {[%emt 0:00:00]} 14. cxd5 {[%emt 0:02:08]} Bxd5 {[%emt 0:00:00]} 15. e3 {[%emt 0:05:36]} Rad8 {[%emt 0:00:00]} 16. b4 {[%emt 0:04:05]} axb4 {[%emt 0:00:00]} 17. axb4 {[%emt 0:01:37]} cxb4 {[%emt 0:00:00]} 18. Qa4 {[%emt 0:03:06]} b3 {[%emt 0:00:00]} 19. Bc3 {[%emt 0:05:19]} Ra8 {[%emt 0:00:00]} 20. Qb5 {[%emt 0:04:49]} Rfd8 {[%emt 0:00:00]} 21. Rfe1 {[%emt 0:09:24]} Na7 {[%emt 0:00:00]} 22. Qb6 {[%emt 0:07:36]} Nd7 {[%emt 0:00:00]} 23. Qa5 {[%emt 0:03:37]} b5 {[%emt 0:02:03]} 24. Qb4 {[%emt 0:03:53]} Qxb4 {[%emt 0:00:58]} 25. Bxb4 {[%emt 0:00:07]} Nc6 {[%emt 0:00:55]} 26. Bd6 {[%emt 0:02:25]} Kg8 {[%emt 0:03:30]} 27. Rec1 {[%emt 0:01:37]} Rac8 {[%emt 0:02:02]} 28. h4 {[%emt 0:03:23]} Nb6 {[%emt 0:00:53]} 29. Ba3 {[%emt 0:02:04]} Na4 {[%emt 0:01:00]} 30. Bb2 {[%emt 0:00:30]} Nxb2 {[%emt 0:00:34]} 31. Rxb2 {[%emt 0:00:07]} e4 {[%emt 0:00:32]} 32. dxe4 {[%emt 0:01:05]} fxe4 {[%emt 0:00:07]} 33. Nd2 {[%emt 0:00:38]} Nb4 {[%emt 0:00:54]} 34. Rxc8 {[%emt 0:00:29]} Rxc8 {[%emt 0:00:04]} 35. Nxb3 {[%emt 0:06:53]} Nd3 {[%emt 0:00:22]} 36. Rb1 {[%emt 0:00:19]} b4 {[%emt 0:00:43]} 37. Nd2 {[%emt 0:01:45]} Rc1+ {[%emt 0:00:47]} 38. Rxc1 {[%emt 0:00:47]} Nxc1 {[%emt 0:00:05]} 39. Bxe4 {[%emt 0:01:10]} Ba2 {[%emt 0:00:59]} 40. Kf1 {[%emt 0:02:37]} Be6 {[%emt 0:00:31]} 41. Ke1 {[%emt 0:33:08]} Na2 {[%emt 0:03:38]} 42. Nb1 {[%emt 0:00:00]} h6 {[%emt 0:01:50]} 43. Kd2 {[%emt 0:00:00]} Kf7 {[%emt 0:00:20]} 44. Kc2 {[%emt 0:00:00]} Kf6 {[%emt 0:00:38]} 45. Kb2 {[%emt 0:00:00]} g5 {[%emt 0:00:35]} 46. hxg5+ {[%emt 0:00:00]} hxg5 {[%emt 0:01:04]} 47. f4 {[%emt 0:00:00]} gxf4 {[%emt 0:05:55]} 48. gxf4 {[%emt 0:00:00]} Kg7 {[%emt 0:06:30]} 49. Bc2 {[%emt 0:00:00]} Kf6 {[%emt 0:02:57]} 50. Bb3 {[%emt 0:00:00]} Bxb3 {[%emt 0:01:08]} 51. Kxb3 {[%emt 0:00:00]} Nc1+ {[%emt 0:00:06]} 52. Kc2 {[%emt 0:00:00]} Ne2 {[%emt 0:03:31]} 53. Kd3 {[%emt 0:00:00]} Nc1+ {[%emt 0:04:03]} 54. Ke4 {[%emt 0:00:00]} Nb3 {[%emt 0:04:01]} 55. Kf3 {[%emt 0:00:00]} Kf5 {[%emt 0:01:06]} 56. e4+ {[%emt 0:00:00]} Ke6 {[%emt 0:00:25]} 57. Ke3 {[%emt 0:00:00]} Kf6 {[%emt 0:00:36]} 58. Nd2 {[%emt 0:00:00]} Nc5 {[%emt 0:00:33]} 59. f5 {[%emt 0:00:00]} Ke5 {[%emt 0:00:31]} 60. Nc4+ {[%emt 0:00:00]} Kf6 {[%emt 0:00:11]} 61. Nb2 {[%emt 0:00:00]} b3 {[%emt 0:00:46]} 62. Kd4 {[%emt 0:00:00]} Nd7 {[%emt 0:00:23]} 63. Kd5 {[%emt 0:00:00]} Ne5 {[%emt 0:00:39]} 64. Kc5 {[%emt 0:00:31]} Nf7 {[%emt 0:00:31]} 65. Kc4 {[%emt 0:00:12]} Nd6+ {[%emt 0:00:29]} 1/2-1/2

[Event "Austrian Championship 2022"]
[Site "Vienna"]
[Date "2022.08.18"]
[Round "8.24"]
[White "Steiner, Bruno"]
[Black "Wiedermann, Daniel"]
[Result "1-0"]
[ECO "D00"]
[WhiteElo "2126"]
[BlackElo "2053"]
[Annotator "NA RC"]
[PlyCount "131"]
[EventDate "2022.08.12"]
[EventType "swiss"]
[EventCountry "AUT"]
[SourceTitle "playchess.com"]
[Source "ChessBase"]
[SourceQuality "1"]
[TimeControl "40/5400+30:1800+30"]

1. d4 {[%emt 0:09:46]} Nf6 {[%emt 0:00:10]} 2. Bg5 {[%emt 0:07:46]} g6 {[%emt 0:01:21]} 3. Bxf6 {[%emt 0:00:27]} exf6 {[%emt 0:00:03]} 4. e3 {[%emt 0:00:12]} d5 {[%emt 0:00:17]} 5. c4 {[%emt 0:00:08]} dxc4 {[%emt 0:01:17]} 6. Bxc4 {[%emt 0:04:24]} Nd7 {[%emt 0:01:11]} 7. Nf3 {[%emt 0:03:11]} Bd6 {[%emt 0:00:37]} 8. Nc3 {[%emt 0:04:50]} f5 {[%emt 0:02:18]} 9. h4 {[%emt 0:02:13]} h5 {[%emt 0:00:22]} 10. Ng5 {[%emt 0:02:06]} O-O {[%emt 0:00:13]} 11. Qf3 {[%emt 0:11:37]} Nb6 {[%emt 0:04:04]} 12. Bb3 {[%emt 0:03:44]} c6 {[%emt 0:16:58]} 13. O-O {[%emt 0:08:48]} Kg7 {[%emt 0:16:48]} 14. Rfe1 {[%emt 0:00:30]} Be7 {[%emt 0:05:37]} 15. Qg3 {[%emt 0:02:11]} Bd6 {[%emt 0:01:43]} 16. Qf3 {[%emt 0:00:11]} Be7 {[%emt 0:00:34]} 17. Qg3 {[%emt 0:00:12]} Bd6 {[%emt 0:00:04]} 18. f4 {[%emt 0:00:09]} f6 {[%emt 0:09:20]} 19. Ne6+ {[%emt 0:04:07]} Bxe6 {[%emt 0:01:01]} 20. Bxe6 {[%emt 0:00:08]} Re8 {[%emt 0:00:29]} 21. Bxf5 {[%emt 0:01:09]} g5 {[%emt 0:00:27]} 22. hxg5 {[%emt 0:06:21]} fxg5 {[%emt 0:00:03]} 23. Ne4 {[%emt 0:06:10]} g4 {[%emt 0:01:43]} 24. Bxg4 {[%emt 0:00:12]} hxg4 {[%emt 0:01:54]} 25. Qxg4+ {[%emt 0:00:30]} Kf8 {[%emt 0:01:36]} 26. Qf5+ {[%emt 0:00:07]} Kg7 {[%emt 0:00:19]} 27. Qg4+ {[%emt 0:01:16]} Kf8 {[%emt 0:00:04]} 28. Qg6 {[%emt 0:02:15]} Bb4 {[%emt 0:05:10]} 29. Ng5 {[%emt 0:10:43]} Re7 {[%emt 0:01:19]} 30. Rf1 {[%emt 0:01:07]} Qd7 {[%emt 0:04:06]} 31. Rf3 {[%emt 0:01:21]} Rg7 {[%emt 0:06:12]} 32. Ne6+ {[%emt 0:02:41]} Kg8 {[%emt 0:00:02]} 33. Nxg7 {[%emt 0:00:10]} Qxg7 {[%emt 0:00:02]} 34. Qe6+ {[%emt 0:00:30]} Kf8 {[%emt 0:00:57]} 35. Qh3 {[%emt 0:01:20]} Ke7 {[%emt 0:00:49]} 36. Rg3 {[%emt 0:00:22]} Qf7 {[%emt 0:00:16]} 37. f5 {[%emt 0:01:27]} Rf8 {[%emt 0:02:28]} 38. Rf1 {[%emt 0:01:23]} Kd8 {[%emt 0:06:40]} 39. f6 {[%emt 0:01:05]} Qd7 {[%emt 0:01:14]} 40. Qxd7+ {[%emt 0:01:30]} Nxd7 {[%emt 0:01:15]} 41. Rgf3 {[%emt 0:30:34]} c5 {[%emt 0:33:56]} 42. a3 {[%emt 0:00:00]} Ba5 {[%emt 0:00:00]} 43. dxc5 {[%emt 0:00:00]} Ne5 {[%emt 0:00:00]} 44. Rf4 {[%emt 0:00:00]} a6 {[%emt 0:00:00]} 45. Re4 {[%emt 0:00:00]} Nd7 {[%emt 0:00:00]} 46. f7 {[%emt 0:00:00]} Nxc5 {[%emt 0:00:00]} 47. Re8+ {[%emt 0:00:00]} Rxe8 {[%emt 0:00:00]} 48. fxe8=Q+ Kxe8 {[%emt 0:00:00]} 49. b4 {[%emt 0:00:00]} Bb6 {[%emt 0:00:00]} 50. bxc5 {[%emt 0:00:00]} Bxc5 {[%emt 0:00:00]} 51. Rb1 {[%emt 0:00:00]} Bxe3+ {[%emt 0:00:00]} 52. Kf1 {[%emt 0:00:00]} Bc5 {[%emt 0:00:00]} 53. Rxb7 {[%emt 0:00:00]} Bxa3 {[%emt 0:00:00]} 54. Ra7 {[%emt 0:00:00]} Bc5 {[%emt 0:00:00]} 55. Rxa6 {[%emt 0:00:00]} Kf7 {[%emt 0:00:00]} 56. Ke2 {[%emt 0:00:00]} Be7 {[%emt 0:00:00]} 57. Kf3 {[%emt 0:00:00]} Bf6 {[%emt 0:00:00]} 58. Rxf6+ {[%emt 0:00:00]} Kxf6 {[%emt 0:00:00]} 59. Kf4 {[%emt 0:00:00]} Kf7 {[%emt 0:00:00]} 60. Kg5 {[%emt 0:00:04]} Kf8 {[%emt 0:00:00]} 61. Kg6 {[%emt 0:00:17]} Kg8 {[%emt 0:00:00]} 62. g4 {[%emt 0:01:56]} Kh8 {[%emt 0:00:00]} 63. g5 {[%emt 0:00:13]} Kg8 {[%emt 0:00:00]} 64. Kh6 {[%emt 0:00:04]} Kh8 {[%emt 0:00:00]} 65. g6 {[%emt 0:00:04]} Kg8 {[%emt 0:00:00]} 66. g7 {[%emt 0:00:05]} 1-0

[Event "Austrian Championship 2022"]
[Site "Vienna"]
[Date "2022.08.19"]
[Round "9.1"]
[White "Blohberger, Felix"]
[Black "Horvath, Dominik"]
[Result "1/2-1/2"]
[ECO "C88"]
[WhiteElo "2492"]
[BlackElo "2488"]
[Annotator "TA"]
[PlyCount "36"]
[EventDate "2022.08.12"]
[EventType "swiss"]
[EventCountry "AUT"]
[SourceTitle "playchess.com"]
[Source "ChessBase"]
[SourceQuality "1"]
[TimeControl "40/5400+30:1800+30"]

{[%evp 18,36,8,6,9,10,10,0,13,0,0,-7,10,0,0,0,0,0,7,0,0]} 1. e4 {[%emt 0:01:20]} e5 {[%emt 0:01:31]} 2. Nf3 {[%emt 0:00:07]} Nc6 {[%emt 0:00:02]} 3. Bb5 {[%emt 0:00:08][%cal Bf1b5,Bb5a4,Ba4b3,Bb3a2][%mdl 32]} a6 {[%emt 0:00:12]} 4. Ba4 {[%emt 0:00:06]} Nf6 {[%emt 0:00:04]} 5. O-O {[%emt 0:00:10]} Be7 {[%emt 0:01:18]} 6. Re1 {[%emt 0:01:00]} b5 {[%emt 0:00:04]} 7. Bb3 {[%emt 0:00:06]} O-O {[%emt 0:00:07]} 8. a4 {[%emt 0:00:13]} b4 {[%emt 0:00:11]} 9. d3 {[%emt 0:02:30] 9.d4 is the fancy move.} d6 {[%emt 0:00:17]} 10. Nbd2 {[%emt 0:00:41] The position is equal.} Na5 {[%emt 0:00:07] C88: Closed Ruy Lopez: Anti-Marshall Systems.} 11. Ba2 {[%emt 0:00:07]} c5 {[%emt 0:00:16]} 12. c3 {[%emt 0:01:40]} Nc6 {[%emt 0:03:06]} 13. h3 {[%emt 0:03:37][%cal Od3d4]} Be6 {[%emt 0:09:55]} 14. Nc4 {[%emt 0:03:40]} Rb8 {[%emt 0:19:57]} 15. Ng5 {[%emt 0:01:14] [#]} Bc8 $146 {[%emt 0:11:13]} ({Predecessor:} 15... Bd7 16. f4 h6 17. Nf3 exf4 18. Bxf4 Be6 19. Ne3 bxc3 20. bxc3 Rb2 21. Bd5 Qd7 22. a5 Rb5 23. Bh2 Qc7 24. Bxe6 fxe6 25. Nc4 {0-1 (46) Karjakin,S (2753)-So,W (2765) Kolkata 2018}) 16. Nf3 {[%emt 0:11:45]} Be6 {[%emt 0:02:59]} 17. Ng5 {[%emt 0:20:38]} Bc8 {[%emt 0:00:05]} 18. Nf3 {[%emt 0:07:16]} Be6 {[%emt 0:48:06] Not much happened in this game.  Weighted Error Value: White=0.04 (flawless) /Black=0.02 (flawless)} 1/2-1/2